[Event "XIX Najdorf Memorial 2019"]
[Site "Warsaw"]
[Date "2019.07.13"]
[Round "8.23"]
[White "Jacobsen, Mikkel Manosri"]
[Black "Sanz Wawer, Daniel"]
[Result "1-0"]
[ECO "D27"]
[WhiteElo "2343"]
[BlackElo "2154"]
[Annotator "NA"]
[PlyCount "109"]
[EventDate "2019.07.06"]
[EventType "swiss"]
[EventCountry "POL"]
[SourceTitle "playchess.com"]
[Source "ChessBase"]
[SourceQuality "1"]
[TimeControl "40/5400+30:1800+30"]

1. d4 {[%emt 0:03:52]} d5 {[%emt 0:00:00]} 2. c4 {[%emt 0:00:16]} dxc4 {[%emt 0:00:00]} 3. e3 {[%emt 0:00:05]} Nf6 {[%emt 0:00:19]} 4. Bxc4 {[%emt 0:00:14]} e6 {[%emt 0:00:16]} 5. Nf3 {[%emt 0:00:06]} c5 {[%emt 0:00:29]} 6. O-O {[%emt 0:00:07]} a6 {[%emt 0:00:28]} 7. a4 {[%emt 0:00:04]} Nc6 {[%emt 0:00:32]} 8. Qe2 {[%emt 0:00:05]} Qc7 {[%emt 0:00:54]} 9. Nc3 {[%emt 0:01:49]} Bd6 {[%emt 0:00:35]} 10. h3 {[%emt 0:07:07]} O-O {[%emt 0:01:48]} 11. Bd2 {[%emt 0:04:00]} b6 {[%emt 0:01:29]} 12. dxc5 {[%emt 0:00:53]} bxc5 {[%emt 0:04:48]} 13. Rfc1 {[%emt 0:01:55]} Bb7 {[%emt 0:01:04]} 14. Be1 {[%emt 0:05:59]} Rfd8 {[%emt 0:01:36]} 15. Nd2 {[%emt 0:07:42]} Ne5 {[%emt 0:04:57]} 16. a5 {[%emt 0:01:23]} Qc6 {[%emt 0:02:24]} 17. f3 {[%emt 0:05:10]} Bb8 {[%emt 0:08:39]} 18. Nf1 {[%emt 0:05:34]} Nxc4 {[%emt 0:15:40]} 19. Qxc4 {[%emt 0:00:08]} Nd7 {[%emt 0:00:27]} 20. Ne4 {[%emt 0:06:48]} Be5 {[%emt 0:11:31]} 21. Rab1 {[%emt 0:11:52]} Rac8 {[%emt 0:19:41]} 22. Bh4 {[%emt 0:00:17]} Re8 {[%emt 0:00:58]} 23. b4 {[%emt 0:03:25]} Qa4 {[%emt 0:04:58]} 24. Nxc5 {[%emt 0:07:47]} Nxc5 {[%emt 0:00:18]} 25. bxc5 {[%emt 0:00:05]} Qxc4 {[%emt 0:00:34]} 26. Rxc4 {[%emt 0:00:02]} Bc6 {[%emt 0:02:14]} 27. Bg3 {[%emt 0:01:31]} Bb5 {[%emt 0:05:53]} 28. Rcc1 {[%emt 0:00:02]} Bxf1 {[%emt 0:01:23]} 29. Bxe5 {[%emt 0:00:09]} Bb5 {[%emt 0:00:21]} 30. Kf2 {[%emt 0:02:51]} f6 {[%emt 0:02:06]} 31. Bd6 {[%emt 0:00:26]} Red8 {[%emt 0:01:36]} 32. Rd1 {[%emt 0:01:05]} Kf7 {[%emt 0:00:55]} 33. e4 {[%emt 0:01:30]} e5 {[%emt 0:03:43]} 34. Ke3 {[%emt 0:00:28]} Re8 {[%emt 0:00:43]} 35. Rb4 {[%emt 0:00:34]} Red8 {[%emt 0:01:20]} 36. Rdb1 {[%emt 0:00:26]} Rd7 {[%emt 0:00:50]} 37. g3 {[%emt 0:01:34]} Ke6 {[%emt 0:00:49]} 38. f4 {[%emt 0:03:02]} exf4+ {[%emt 0:00:05]} 39. gxf4 {[%emt 0:00:04]} f5 {[%emt 0:00:36]} 40. Rg1 {[%emt 0:00:00]} fxe4 {[%emt 0:00:00]} 41. Rxe4+ {[%emt 0:16:40]} Kd5 {[%emt 0:07:19]} 42. Rg5+ {[%emt 0:04:03]} Kc6 {[%emt 0:00:57]} 43. Rge5 {[%emt 0:00:54]} g6 {[%emt 0:03:49]} 44. Re6 {[%emt 0:03:00]} Kb7 {[%emt 0:00:23]} 45. Kd4 {[%emt 0:02:05]} Rcd8 {[%emt 0:00:42]} 46. Rf6 {[%emt 0:02:06]} Rg7 {[%emt 0:01:16]} 47. h4 {[%emt 0:00:53]} Rgd7 {[%emt 0:07:02]} 48. Ree6 {[%emt 0:01:40]} Bc6 {[%emt 0:00:20]} 49. Ke3 {[%emt 0:01:02]} Bd5 {[%emt 0:01:06]} 50. Re5 {[%emt 0:00:21]} Bc6 {[%emt 0:00:21]} 51. Kf2 {[%emt 0:00:45]} Rg7 {[%emt 0:01:31]} 52. Kg3 {[%emt 0:00:10]} Re8 {[%emt 0:00:55]} 53. Rxe8 {[%emt 0:07:29]} Bxe8 {[%emt 0:00:04]} 54. Be5 {[%emt 0:00:06]} Re7 {[%emt 0:11:34]} 55. Rb6+ {[%emt 0:00:15]} 1-0

[Event "XIX Najdorf Memorial 2019"]
[Site "Warsaw"]
[Date "2019.07.13"]
[Round "8.24"]
[White "Terletsky, Oleg"]
[Black "Zaleski, Lukasz"]
[Result "1/2-1/2"]
[ECO "C03"]
[WhiteElo "2408"]
[BlackElo "2185"]
[Annotator "NA"]
[PlyCount "43"]
[EventDate "2019.07.06"]
[EventType "swiss"]
[EventCountry "POL"]
[SourceTitle "playchess.com"]
[Source "ChessBase"]
[SourceQuality "1"]
[TimeControl "40/5400+30:1800+30"]

1. e4 {[%emt 0:00:00]} e6 {[%emt 0:00:00]} 2. d4 {[%emt 0:00:00]} d5 {[%emt 0:00:00]} 3. Nd2 {[%emt 0:00:00]} h6 {[%emt 0:00:21]} 4. Bd3 {[%emt 0:02:06]} c5 {[%emt 0:00:25]} 5. exd5 {[%emt 0:01:17]} Qxd5 {[%emt 0:00:45]} 6. Ngf3 {[%emt 0:01:43]} cxd4 {[%emt 0:01:10]} 7. Bc4 {[%emt 0:02:52]} Qd6 {[%emt 0:01:35]} 8. O-O {[%emt 0:00:07]} Nf6 {[%emt 0:03:41]} 9. Nb3 {[%emt 0:00:05]} Nc6 {[%emt 0:00:22]} 10. Nbxd4 {[%emt 0:00:07]} Nxd4 {[%emt 0:00:41]} 11. Nxd4 {[%emt 0:00:04]} a6 {[%emt 0:02:40]} 12. a4 {[%emt 0:00:22]} Qc7 {[%emt 0:04:07]} 13. b3 {[%emt 0:00:06]} Bd6 {[%emt 0:01:57]} 14. Nf3 {[%emt 0:00:05]} Bd7 {[%emt 0:13:31]} 15. Bb2 {[%emt 0:02:50]} Bc6 {[%emt 0:10:44]} 16. h3 {[%emt 0:14:26]} O-O-O {[%emt 0:02:27]} 17. Qe2 {[%emt 0:00:14]} Nh5 {[%emt 0:03:53]} 18. g3 {[%emt 0:02:05]} Bc5 {[%emt 0:31:46]} 19. Kg2 {[%emt 0:01:49]} Bd6 {[%emt 0:01:38]} 20. Kg1 {[%emt 0:01:18]} Bc5 {[%emt 0:00:09]} 21. Kg2 {[%emt 0:00:05]} Bd6 {[%emt 0:01:08]} 22. Kg1 {[%emt 0:00:08]} 1/2-1/2

[Event "XIX Najdorf Memorial 2019"]
[Site "Warsaw"]
[Date "2019.07.13"]
[Round "8.25"]
[White "Shkliar, Boris"]
[Black "Malek, Daniel"]
[Result "0-1"]
[ECO "C11"]
[WhiteElo "2160"]
[BlackElo "2362"]
[Annotator "NA"]
[PlyCount "76"]
[EventDate "2019.07.06"]
[EventType "swiss"]
[EventCountry "POL"]
[SourceTitle "playchess.com"]
[Source "ChessBase"]
[SourceQuality "1"]
[TimeControl "40/5400+30:1800+30"]

1. e4 {[%emt 0:10:12]} e6 {[%emt 0:00:00]} 2. d4 {[%emt 0:00:04]} d5 {[%emt 0:00:00]} 3. Nc3 {[%emt 0:00:04]} Nf6 {[%emt 0:00:00]} 4. Bg5 {[%emt 0:00:20]} dxe4 {[%emt 0:00:00]} 5. Nxe4 {[%emt 0:00:10]} Be7 {[%emt 0:00:01]} 6. Bxf6 {[%emt 0:00:27]} gxf6 {[%emt 0:00:08]} 7. Nf3 {[%emt 0:00:34]} f5 {[%emt 0:00:07]} 8. Nc3 {[%emt 0:00:13]} a6 {[%emt 0:00:17]} 9. g3 {[%emt 0:00:51]} Nc6 {[%emt 0:11:10]} 10. Qd2 {[%emt 0:31:46]} Bf6 {[%emt 0:19:08]} 11. O-O-O {[%emt 0:02:50]} Qd6 {[%emt 0:05:58]} 12. Bg2 {[%emt 0:10:43]} Bd7 {[%emt 0:01:49]} 13. Qh6 {[%emt 0:13:52]} Be7 {[%emt 0:05:15]} 14. d5 {[%emt 0:10:56]} exd5 {[%emt 0:03:43]} 15. Qxd6 {[%emt 0:00:12]} Bxd6 {[%emt 0:00:06]} 16. Rhe1+ {[%emt 0:00:19]} Kf8 {[%emt 0:02:24]} 17. Nxd5 {[%emt 0:00:24]} Rd8 {[%emt 0:00:13]} 18. Bh3 {[%emt 0:01:45]} Be6 {[%emt 0:04:55]} 19. c4 {[%emt 0:06:59]} Ne7 {[%emt 0:04:03]} 20. Nh4 {[%emt 0:05:23]} Bxd5 {[%emt 0:03:51]} 21. cxd5 {[%emt 0:00:01]} f4 {[%emt 0:00:14]} 22. Nf5 {[%emt 0:00:45]} Nxf5 {[%emt 0:02:20]} 23. Bxf5 {[%emt 0:00:01]} fxg3 {[%emt 0:00:08]} 24. fxg3 {[%emt 0:01:26]} h5 {[%emt 0:02:16]} 25. Bc2 {[%emt 0:01:06]} h4 {[%emt 0:01:30]} 26. Rd3 {[%emt 0:01:04]} Re8 {[%emt 0:04:19]} 27. Rf1 {[%emt 0:00:27]} hxg3 {[%emt 0:01:43]} 28. hxg3 {[%emt 0:00:01]} Rg8 {[%emt 0:00:22]} 29. Rdf3 {[%emt 0:01:02]} Re7 {[%emt 0:00:59]} 30. Rh1 {[%emt 0:00:01]} Bxg3 {[%emt 0:02:35]} 31. Rh7 {[%emt 0:00:30]} Be5 {[%emt 0:01:42]} 32. Bf5 {[%emt 0:00:59]} Rg2 {[%emt 0:02:24]} 33. Be6 {[%emt 0:00:27]} Bxb2+ {[%emt 0:00:34]} 34. Kb1 {[%emt 0:00:01]} Bg7 {[%emt 0:00:15]} 35. Rh1 {[%emt 0:01:04]} Ke8 {[%emt 0:01:50]} 36. Bf5 {[%emt 0:00:30]} Ree2 {[%emt 0:02:13]} 37. Rb3 {[%emt 0:00:09]} Rxa2 {[%emt 0:00:35]} 38. Kc1 {[%emt 0:00:06]} Bb2+ {[%emt 0:00:22]} 0-1

[Event "XIX Najdorf Memorial 2019"]
[Site "Warsaw"]
[Date "2019.07.13"]
[Round "8.26"]
[White "Czerw, Dawid"]
[Black "Adamski, Jan"]
[Result "1/2-1/2"]
[ECO "E42"]
[WhiteElo "2326"]
[BlackElo "2183"]
[Annotator "NA"]
[PlyCount "98"]
[EventDate "2019.07.06"]
[EventType "swiss"]
[EventCountry "POL"]
[SourceTitle "playchess.com"]
[Source "ChessBase"]
[SourceQuality "1"]
[TimeControl "40/5400+30:1800+30"]

1. d4 {[%emt 0:03:06]} Nf6 {[%emt 0:01:56]} 2. c4 {[%emt 0:00:07]} e6 {[%emt 0:00:21]} 3. Nc3 {[%emt 0:00:04]} Bb4 {[%emt 0:00:50]} 4. e3 {[%emt 0:00:04]} c5 {[%emt 0:02:52]} 5. Nge2 {[%emt 0:00:15]} d5 {[%emt 0:01:42]} 6. a3 {[%emt 0:00:10]} Bxc3+ {[%emt 0:00:13]} 7. Nxc3 {[%emt 0:00:08]} cxd4 {[%emt 0:00:32]} 8. exd4 {[%emt 0:00:06]} dxc4 {[%emt 0:00:44]} 9. Bxc4 {[%emt 0:00:06]} Nc6 {[%emt 0:00:17]} 10. Be3 {[%emt 0:00:05]} O-O {[%emt 0:00:32]} 11. O-O {[%emt 0:00:06]} b6 {[%emt 0:01:12]} 12. Qf3 {[%emt 0:05:16]} Bb7 {[%emt 0:00:17]} 13. Bd3 {[%emt 0:00:50]} Qd7 {[%emt 0:18:55]} 14. Qh3 {[%emt 0:04:35]} Ne7 {[%emt 0:09:30]} 15. Bg5 {[%emt 0:09:51]} Ng6 {[%emt 0:00:52]} 16. Bxf6 {[%emt 0:01:04]} gxf6 {[%emt 0:00:03]} 17. Rad1 {[%emt 0:17:48]} Bd5 {[%emt 0:04:37]} 18. Be4 {[%emt 0:16:00]} Bxe4 {[%emt 0:06:24]} 19. Nxe4 {[%emt 0:00:02]} Qe7 {[%emt 0:04:41]} 20. d5 {[%emt 0:05:30]} exd5 {[%emt 0:01:27]} 21. Nc3 {[%emt 0:02:22]} Qe6 {[%emt 0:03:29]} 22. Qf3 {[%emt 0:15:08]} Ne5 {[%emt 0:06:10]} 23. Qxd5 {[%emt 0:04:46]} Qxd5 {[%emt 0:00:39]} 24. Nxd5 {[%emt 0:00:11]} Kg7 {[%emt 0:01:31]} 25. b3 {[%emt 0:01:12]} Rfd8 {[%emt 0:07:00]} 26. f4 {[%emt 0:00:19]} Nc6 {[%emt 0:04:42]} 27. b4 {[%emt 0:02:20]} f5 {[%emt 0:03:10]} 28. Ne3 {[%emt 0:03:20]} Kf6 {[%emt 0:01:13]} 29. Nd5+ {[%emt 0:00:42]} Kg7 {[%emt 0:00:14]} 30. b5 {[%emt 0:02:27]} Na5 {[%emt 0:01:18]} 31. Ne3 {[%emt 0:00:33]} Kf6 {[%emt 0:00:31]} 32. Rd5 {[%emt 0:00:53]} Rxd5 {[%emt 0:00:38]} 33. Nxd5+ {[%emt 0:00:01]} Kg7 {[%emt 0:00:17]} 34. Ne3 {[%emt 0:00:38]} Rd8 {[%emt 0:02:04]} 35. Nxf5+ {[%emt 0:01:09]} Kf6 {[%emt 0:00:14]} 36. g4 {[%emt 0:02:51]} h5 {[%emt 0:00:49]} 37. h3 {[%emt 0:00:08]} hxg4 {[%emt 0:00:07]} 38. hxg4 {[%emt 0:00:06]} Rd3 {[%emt 0:06:00]} 39. a4 {[%emt 0:03:22]} Nb3 {[%emt 0:02:33]} 40. Re1 {[%emt 0:00:00]} Nd4 {[%emt 0:00:00]} 41. Nh4 {[%emt 0:14:16]} Nf3+ {[%emt 0:17:41]} 42. Nxf3 {[%emt 0:00:06]} Rxf3 {[%emt 0:00:07]} 43. Re4 {[%emt 0:05:57]} Rg3+ {[%emt 0:00:33]} 44. Kf2 {[%emt 0:00:05]} Rxg4 {[%emt 0:00:05]} 45. Kf3 {[%emt 0:00:03]} Rg1 {[%emt 0:05:14]} 46. Rc4 {[%emt 0:00:48]} Kf5 {[%emt 0:03:38]} 47. Rc7 {[%emt 0:02:25]} f6 {[%emt 0:01:49]} 48. Rxa7 {[%emt 0:00:54]} Rf1+ {[%emt 0:01:00]} 49. Kg3 {[%emt 0:01:17]} Rxf4 {[%emt 0:01:02]} 1/2-1/2

[Event "XIX Najdorf Memorial 2019"]
[Site "Warsaw"]
[Date "2019.07.13"]
[Round "8.27"]
[White "Hassan, Abdullah"]
[Black "Maj, Pawel"]
[Result "1-0"]
[ECO "E63"]
[WhiteElo "2311"]
[BlackElo "2127"]
[Annotator "NA"]
[PlyCount "55"]
[EventDate "2019.07.06"]
[EventType "swiss"]
[EventCountry "POL"]
[SourceTitle "playchess.com"]
[Source "ChessBase"]
[SourceQuality "1"]
[TimeControl "40/5400+30:1800+30"]

1. d4 {[%emt 0:02:40]} Nf6 {[%emt 0:00:00]} 2. Nf3 {[%emt 0:00:09]} g6 {[%emt 0:00:00]} 3. g3 {[%emt 0:00:05]} Bg7 {[%emt 0:00:00]} 4. Bg2 {[%emt 0:00:01]} O-O {[%emt 0:00:00]} 5. O-O {[%emt 0:00:07]} d6 {[%emt 0:00:40]} 6. c4 {[%emt 0:00:02]} Nc6 {[%emt 0:00:07]} 7. Nc3 {[%emt 0:00:02]} a6 {[%emt 0:00:10]} 8. d5 {[%emt 0:00:14]} Na5 {[%emt 0:00:12]} 9. b3 {[%emt 0:00:07]} c5 {[%emt 0:00:38]} 10. dxc6 {[%emt 0:00:16]} Nxc6 {[%emt 0:00:16]} 11. Bb2 {[%emt 0:00:13]} Qa5 {[%emt 0:06:42]} 12. Nd5 {[%emt 0:03:00]} Nxd5 {[%emt 0:04:24]} 13. Bxg7 {[%emt 0:00:02]} Nc3 {[%emt 0:02:32]} 14. Bxc3 {[%emt 0:00:14]} Qxc3 {[%emt 0:00:08]} 15. Rc1 {[%emt 0:00:02]} Qf6 {[%emt 0:01:34]} 16. Qd2 {[%emt 0:01:27]} Kg7 {[%emt 0:02:42]} 17. Rfd1 {[%emt 0:02:48]} Rd8 {[%emt 0:04:01]} 18. Ng5 {[%emt 0:08:52]} h6 {[%emt 0:09:57]} 19. Ne4 {[%emt 0:00:17]} Qe5 {[%emt 0:03:10]} 20. b4 {[%emt 0:08:27]} Kh7 {[%emt 0:06:12]} 21. f4 {[%emt 0:01:16]} Qg7 {[%emt 0:00:54]} 22. b5 {[%emt 0:02:18]} axb5 {[%emt 0:07:40]} 23. cxb5 {[%emt 0:00:06]} Na5 {[%emt 0:00:14]} 24. Rc7 {[%emt 0:05:51]} Be6 {[%emt 0:05:11]} 25. Rxe7 {[%emt 0:03:16]} d5 {[%emt 0:08:06]} 26. Nc5 {[%emt 0:01:59]} Rd6 {[%emt 0:03:22]} 27. Nxe6 {[%emt 0:20:52]} Rxe6 {[%emt 0:00:08]} 28. Rd7 {[%emt 0:00:52]} 1-0

[Event "XIX Najdorf Memorial 2019"]
[Site "Warsaw"]
[Date "2019.07.13"]
[Round "8.28"]
[White "Deszczynski, Adam"]
[Black "Wisniewski, Michal"]
[Result "1-0"]
[ECO "B08"]
[WhiteElo "2304"]
[BlackElo "2103"]
[Annotator "NA"]
[PlyCount "67"]
[EventDate "2019.07.06"]
[EventType "swiss"]
[EventCountry "POL"]
[SourceTitle "playchess.com"]
[Source "ChessBase"]
[SourceQuality "1"]
[TimeControl "40/5400+30:1800+30"]

1. e4 {[%emt 0:00:00]} d6 {[%emt 0:09:52]} 2. d4 {[%emt 0:01:22]} Nf6 {[%emt 0:00:04]} 3. Nc3 g6 4. Nf3 {[%emt 0:06:20]} c6 {[%emt 0:01:09]} 5. a4 Bg7 6. Be2 O-O 7. O-O Qc7 8. Re1 {[%emt 0:08:13]} e5 {[%emt 0:04:20]} 9. a5 {[%emt 0:08:30]} Re8 {[%emt 0:07:12]} 10. Bf1 {[%emt 0:17:49]} Bg4 {[%emt 0:12:59]} 11. Be3 {[%emt 0:00:25]} d5 {[%emt 0:13:00]} 12. h3 {[%emt 0:06:31]} Bxf3 {[%emt 0:02:10]} 13. Qxf3 {[%emt 0:00:12]} Nbd7 {[%emt 0:00:33]} 14. exd5 {[%emt 0:03:52]} e4 {[%emt 0:03:21]} 15. Qf4 {[%emt 0:00:35]} Qxf4 {[%emt 0:01:10]} 16. Bxf4 {[%emt 0:00:06]} Nxd5 {[%emt 0:00:04]} 17. Nxd5 {[%emt 0:02:49]} cxd5 {[%emt 0:00:02]} 18. a6 {[%emt 0:05:13]} b6 {[%emt 0:02:08]} 19. Bb5 {[%emt 0:02:55]} Red8 {[%emt 0:01:56]} 20. Bc7 {[%emt 0:04:44]} Rdc8 {[%emt 0:00:14]} 21. Bc6 {[%emt 0:00:07]} Rxc7 {[%emt 0:00:57]} 22. Bxa8 {[%emt 0:00:08]} Nf6 {[%emt 0:07:40]} 23. c3 {[%emt 0:00:37]} Bh6 {[%emt 0:00:07]} 24. Re2 {[%emt 0:02:41]} Kf8 {[%emt 0:00:46]} 25. g3 {[%emt 0:01:27]} Ke7 {[%emt 0:00:36]} 26. f3 {[%emt 0:00:34]} Kd6 {[%emt 0:00:05]} 27. Kg2 {[%emt 0:00:43]} exf3+ {[%emt 0:01:43]} 28. Kxf3 {[%emt 0:00:32]} Ne4 {[%emt 0:00:06]} 29. Ra3 {[%emt 0:02:17]} f5 {[%emt 0:01:49]} 30. Kg2 {[%emt 0:02:24]} f4 {[%emt 0:05:49]} 31. gxf4 {[%emt 0:03:48]} Bxf4 {[%emt 0:00:08]} 32. Rb3 {[%emt 0:00:44]} g5 {[%emt 0:00:06]} 33. Bb7 {[%emt 0:04:21]} h5 {[%emt 0:03:16]} 34. Rxb6+ 1-0

[Event "XIX Najdorf Memorial 2019"]
[Site "Warsaw"]
[Date "2019.07.13"]
[Round "8.29"]
[White "Szustakowski, Antoni"]
[Black "Martynyuk, Elizaveta"]
[Result "1-0"]
[ECO "D45"]
[WhiteElo "2279"]
[BlackElo "2125"]
[Annotator "NA"]
[PlyCount "84"]
[EventDate "2019.07.06"]
[EventType "swiss"]
[EventCountry "POL"]
[SourceTitle "playchess.com"]
[Source "ChessBase"]
[SourceQuality "1"]
[TimeControl "40/5400+30:1800+30"]

1. d4 {[%emt 0:00:00]} d5 {[%emt 0:07:45]} 2. c4 {[%emt 0:00:00]} c6 {[%emt 0:00:07]} 3. Nc3 {[%emt 0:00:00]} Nf6 {[%emt 0:00:13]} 4. e3 {[%emt 0:00:00]} e6 {[%emt 0:00:07]} 5. Nf3 {[%emt 0:00:00]} Nbd7 {[%emt 0:00:10]} 6. Qc2 {[%emt 0:00:00]} Bd6 {[%emt 0:00:06]} 7. Bd3 {[%emt 0:00:05]} O-O {[%emt 0:00:13]} 8. O-O {[%emt 0:00:04]} dxc4 {[%emt 0:00:33]} 9. Bxc4 {[%emt 0:00:04]} e5 {[%emt 0:00:05]} 10. h3 {[%emt 0:00:04]} h6 {[%emt 0:00:55]} 11. Bb3 {[%emt 0:00:10]} Qc7 {[%emt 0:03:46]} 12. Bd2 {[%emt 0:11:50]} Re8 {[%emt 0:01:14]} 13. dxe5 {[%emt 0:03:18]} Nxe5 {[%emt 0:00:03]} 14. Nxe5 {[%emt 0:00:08]} Bxe5 {[%emt 0:00:05]} 15. f4 {[%emt 0:00:04]} Bxc3 {[%emt 0:01:25]} 16. Bxc3 {[%emt 0:00:03]} Qe7 {[%emt 0:08:57]} 17. Rae1 {[%emt 0:10:35]} Be6 {[%emt 0:21:44]} 18. Bxe6 {[%emt 0:05:03]} Qxe6 {[%emt 0:00:04]} 19. Bxf6 {[%emt 0:00:08]} Qxf6 {[%emt 0:00:05]} 20. e4 {[%emt 0:00:03]} Qd4+ {[%emt 0:03:15]} 21. Kh2 {[%emt 0:03:49]} Rad8 {[%emt 0:00:18]} 22. e5 {[%emt 0:01:45]} Qd2 {[%emt 0:06:16]} 23. Qb3 {[%emt 0:03:42]} Qd5 {[%emt 0:05:38]} 24. Qg3 {[%emt 0:07:04]} Qd3 {[%emt 0:17:11]} 25. Rf3 {[%emt 0:03:46]} Qf5 {[%emt 0:01:57]} 26. Qf2 {[%emt 0:05:41]} Rd7 {[%emt 0:06:19]} 27. Qxa7 {[%emt 0:08:10]} Red8 {[%emt 0:00:26]} 28. Re2 {[%emt 0:03:17]} Rd1 {[%emt 0:02:56]} 29. Qf2 {[%emt 0:06:09]} Ra1 {[%emt 0:01:03]} 30. a3 {[%emt 0:01:46]} Rdd1 {[%emt 0:00:20]} 31. Qh4 {[%emt 0:00:02]} Rf1 {[%emt 0:04:38]} 32. Qg4 {[%emt 0:04:24]} Qb1 {[%emt 0:01:13]} 33. Rxf1 {[%emt 0:01:43]} Qxf1 {[%emt 0:00:07]} 34. Qc8+ {[%emt 0:00:02]} Kh7 {[%emt 0:00:09]} 35. Qf5+ {[%emt 0:00:01]} Kg8 {[%emt 0:00:25]} 36. Qe4 {[%emt 0:00:14]} Rd1 {[%emt 0:04:47]} 37. e6 {[%emt 0:02:57]} f5 {[%emt 0:00:06]} 38. Qe3 {[%emt 0:00:31]} Kf8 {[%emt 0:01:37]} 39. e7+ {[%emt 0:00:17]} Ke8 {[%emt 0:00:20]} 40. Qe5 {[%emt 0:00:00]} Qg1+ {[%emt 0:00:00]} 41. Kg3 {[%emt 0:01:15]} Rd3+ {[%emt 0:02:14]} 42. Kh4 {[%emt 0:00:26]} Qa7 {[%emt 0:12:59]} 1-0

[Event "XIX Najdorf Memorial 2019"]
[Site "Warsaw"]
[Date "2019.07.13"]
[Round "8.30"]
[White "Fiedorek, Michal"]
[Black "Jarocka, Liwia"]
[Result "1-0"]
[ECO "B01"]
[WhiteElo "2241"]
[BlackElo "2102"]
[Annotator "ChessBase"]
[PlyCount "181"]
[EventDate "2019.07.06"]
[EventType "swiss"]
[EventCountry "POL"]
[SourceTitle "playchess.com"]
[Source "ChessBase"]
[SourceQuality "1"]
[TimeControl "40/5400+30:1800+30"]

1. e4 {[%emt 0:00:00]} d5 {[%emt 0:00:00]} 2. exd5 {[%emt 0:00:00]} Qxd5 {[%emt 0:00:00]} 3. Nc3 {[%emt 0:00:00]} Qd8 {[%emt 0:00:01]} 4. d4 {[%emt 0:00:32]} g6 {[%emt 0:00:37]} 5. Bc4 {[%emt 0:03:19]} Bg7 {[%emt 0:00:22]} 6. Nge2 {[%emt 0:00:36]} Nf6 {[%emt 0:00:39]} 7. Bg5 {[%emt 0:04:16]} h6 {[%emt 0:03:02]} 8. Bf4 {[%emt 0:02:14]} a6 {[%emt 0:01:08]} 9. a4 {[%emt 0:08:31]} b6 {[%emt 0:11:27]} 10. O-O {[%emt 0:09:37]} Nc6 {[%emt 0:04:22]} 11. h3 {[%emt 0:03:03]} Bb7 {[%emt 0:00:45]} 12. Qd2 {[%emt 0:03:59]} e6 {[%emt 0:10:22]} 13. Rfe1 {[%emt 0:17:40]} Ne7 {[%emt 0:00:42]} 14. Ng3 {[%emt 0:12:51]} Qd7 {[%emt 0:10:06]} 15. Rad1 {[%emt 0:05:14]} Ned5 {[%emt 0:05:14]} 16. Nxd5 {[%emt 0:04:36]} Nxd5 {[%emt 0:00:37]} 17. Be5 {[%emt 0:03:43]} O-O {[%emt 0:01:27]} 18. Bb3 {[%emt 0:04:54]} f6 {[%emt 0:14:25]} 19. Bf4 {[%emt 0:00:17]} g5 {[%emt 0:00:11]} 20. Be3 {[%emt 0:00:32]} f5 {[%emt 0:00:45]} 21. f4 {[%emt 0:07:07]} Rae8 {[%emt 0:03:35]} 22. Nh5 {[%emt 0:01:27]} Qf7 {[%emt 0:03:14]} 23. Nxg7 {[%emt 0:00:26]} Qxg7 {[%emt 0:00:30]} 24. Re2 {[%emt 0:01:40]} g4 {[%emt 0:01:18]} 25. c4 {[%emt 0:01:09]} Nf6 {[%emt 0:01:01]} 26. Kh2 {[%emt 0:01:08]} Kh7 {[%emt 0:03:37]} 27. Qe1 {[%emt 0:00:55]} Rg8 {[%emt 0:00:50]} 28. Rdd2 {[%emt 0:02:16]} gxh3 {[%emt 0:09:31]} 29. d5 {[%emt 0:01:07]} Ng4+ {[%emt 0:01:16]} 30. Kg1 {[%emt 0:00:18]} exd5 {[%emt 0:02:51]} 31. Bd4 {[%emt 0:00:21]} Qf7 {[%emt 0:00:32]} 32. Bc2 {[%emt 0:00:27]} Bc8 {[%emt 0:03:00]} 33. Rxe8 {[%emt 0:00:52]} Rxe8 {[%emt 0:00:10]} 34. Re2 {[%emt 0:00:11]} Rxe2 {[%emt 0:01:02]} 35. Qxe2 {[%emt 0:00:05]} h2+ {[%emt 0:00:43]} 36. Kh1 {[%emt 0:00:04]} c5 {[%emt 0:02:39]} 37. Bc3 {[%emt 0:00:51]} d4 {[%emt 0:01:54]} 38. Bxd4 {[%emt 0:00:55]} cxd4 {[%emt 0:00:52]} 39. Qxg4 {[%emt 0:00:09]} Qxc4 {[%emt 0:03:27]} 40. Bxf5+ {[%emt 0:00:00]} Bxf5 {[%emt 0:00:00]} 41. Qxf5+ {[%emt 0:00:21]} Kg7 {[%emt 0:00:22]} 42. Qd7+ {[%emt 0:03:22]} Kg8 {[%emt 0:00:54]} 43. f5 {[%emt 0:03:49]} Qf7 {[%emt 0:17:57]} 44. Qd8+ {[%emt 0:05:38]} Qf8 {[%emt 0:00:19]} 45. Qd5+ {[%emt 0:00:29]} Qf7 {[%emt 0:00:20]} 46. Qxd4 {[%emt 0:07:05]} Qxf5 {[%emt 0:00:16]} 47. Qxb6 {[%emt 0:02:26]} Qf1+ {[%emt 0:03:07]} 48. Kxh2 {[%emt 0:00:07]} Qf4+ {[%emt 0:00:07]} 49. g3 {[%emt 0:03:59]} Qd2+ {[%emt 0:02:12]} 50. Kh3 {[%emt 0:00:50]} Qd7+ {[%emt 0:00:10]} 51. g4 {[%emt 0:01:28]} Qxa4 {[%emt 0:01:03]} 52. Qg6+ {[%emt 0:00:27]} Kf8 {[%emt 0:00:13]} 53. Qxh6+ {[%emt 0:00:07]} Kg8 {[%emt 0:00:40]} 54. Qg5+ {[%emt 0:01:26]} Kh8 {[%emt 0:01:00]} 55. Qe5+ {[%emt 0:00:05]} Kg8 {[%emt 0:00:11]} 56. Kh4 {[%emt 0:01:36]} Qc6 {[%emt 0:01:20]} 57. Kg5 {[%emt 0:02:17]} Kf7 {[%emt 0:00:47]} 58. Qf5+ {[%emt 0:02:54]} Kg7 {[%emt 0:00:17]} 59. Qe5+ {[%emt 0:00:12]} Kf7 {[%emt 0:00:09]} 60. Qf4+ {[%emt 0:00:07]} Kg7 {[%emt 0:00:20]} 61. Qd4+ {[%emt 0:00:25]} Kf7 {[%emt 0:00:32]} 62. Kf4 {[%emt 0:02:44]} Qh6+ {[%emt 0:00:43]} 63. Kg3 {[%emt 0:00:28]} Qc6 {[%emt 0:00:29]} 64. b4 {[%emt 0:01:11]} Qe6 {[%emt 0:02:12]} 65. Qc5 {[%emt 0:00:43]} Kg7 {[%emt 0:00:32]} 66. Qg5+ {[%emt 0:00:22]} Kh8 {[%emt 0:00:26]} 67. Qd8+ {[%emt 0:00:39]} Kg7 {[%emt 0:00:15]} 68. Qd4+ {[%emt 0:00:20]} Kg6 {[%emt 0:00:28]} 69. Kf4 {[%emt 0:00:45]} Qf7+ {[%emt 0:00:38]} 70. Ke3 {[%emt 0:00:09]} Qa2 {[%emt 0:01:39]} 71. Qe4+ {[%emt 0:00:51]} Kg7 {[%emt 0:00:13]} 72. g5 {[%emt 0:00:25]} Qa3+ {[%emt 0:00:47]} 73. Kf4 {[%emt 0:00:25]} Qc1+ {[%emt 0:00:21]} 74. Kg4 {[%emt 0:00:39]} Qg1+ {[%emt 0:00:57]} 75. Kf5 {[%emt 0:00:27]} Qf1+ {[%emt 0:00:29]} 76. Ke6 {[%emt 0:00:32]} Qh3+ {[%emt 0:03:31]} 77. Kd6 {[%emt 0:00:38]} Qa3 {[%emt 0:00:20]} 78. Ke7 {[%emt 0:00:26]} Qc3 {[%emt 0:00:34]} 79. Kd6 {[%emt 0:00:31]} Qa3 {[%emt 0:00:30]} 80. Qe5+ {[%emt 0:00:21]} Kg8 {[%emt 0:00:17]} 81. Qe6+ {[%emt 0:00:26]} Kg7 {[%emt 0:00:24]} 82. Qe5+ {[%emt 0:00:23]} Kg8 {[%emt 0:00:08]} 83. Qc5 {[%emt 0:00:35]} Kg7 {[%emt 0:00:45]} 84. Kc6 {[%emt 0:00:46]} Kg6 {[%emt 0:00:42]} 85. Kb6 {[%emt 0:00:18]} Qd3 {[%emt 0:00:39]} 86. Qa5 {[%emt 0:00:39]} Qc4 {[%emt 0:01:22]} 87. Ka7 {[%emt 0:00:27]} Kh5 {[%emt 0:01:09]} 88. g6+ {[%emt 0:00:39]} Kh6 {[%emt 0:00:01]} 89. Qb6 {[%emt 0:00:24]} Kg7 {[%emt 0:01:44]} 90. Qb7+ {[%emt 0:00:07]} Kf8 {[%emt 0:00:20]} 91. Qf7+ {[%emt 0:00:17]} 1-0